[Event "XVII Juros Svente 2020-A"]
[Site "Klaipeda"]
[Date "2020.07.23"]
[Round "4.10"]
[White "Januseviciute, Donata"]
[Black "Savicevs, Arsenijs"]
[Result "0-1"]
[ECO "E01"]
[WhiteElo "1520"]
[BlackElo "1578"]
[Annotator "NA RC"]
[PlyCount "74"]
[EventDate "2020.07.20"]
[EventType "tourn"]
[EventCountry "LTU"]
[SourceTitle "playchess.com"]
[Source "ChessBase"]
[SourceQuality "1"]
[TimeControl "40/5400+30:1800+30"]

1. d4 {[%emt 0:00:00]} Nf6 {[%emt 0:00:00]} 2. c4 {[%emt 0:00:00]} e6 {[%emt 0:00:00]} 3. g3 {[%emt 0:00:03]} d5 {[%emt 0:00:00]} 4. Bg2 {[%emt 0:00:23]} c5 {[%emt 0:00:06]} 5. cxd5 {[%emt 0:01:00]} Nxd5 {[%emt 0:00:26]} 6. Nc3 {[%emt 0:04:02]} Nc6 {[%emt 0:01:52]} 7. Nxd5 {[%emt 0:01:30]} exd5 {[%emt 0:00:17]} 8. Nf3 {[%emt 0:00:57]} cxd4 {[%emt 0:00:34]} 9. O-O {[%emt 0:00:42]} Bc5 {[%emt 0:00:16]} 10. a3 {[%emt 0:02:24]} O-O {[%emt 0:02:31]} 11. b4 {[%emt 0:00:13]} Bb6 {[%emt 0:00:06]} 12. Bb2 {[%emt 0:01:32]} Qf6 {[%emt 0:02:28]} 13. b5 {[%emt 0:06:06]} Ne5 {[%emt 0:07:00]} 14. Nxe5 {[%emt 0:01:32]} Qxe5 {[%emt 0:00:08]} 15. e3 {[%emt 0:00:21]} Qe8 {[%emt 0:01:19]} 16. a4 {[%emt 0:00:29]} dxe3 {[%emt 0:00:13]} 17. Qxd5 {[%emt 0:04:27]} exf2+ {[%emt 0:00:17]} 18. Kh1 {[%emt 0:00:08]} Qe3 {[%emt 0:00:43]} 19. a5 {[%emt 0:10:33]} Be6 {[%emt 0:00:07]} 20. Qxb7 {[%emt 0:02:32]} Rab8 {[%emt 0:00:10]} 21. Qf3 {[%emt 0:00:51]} Qxf3 {[%emt 0:00:11]} 22. Bxf3 {[%emt 0:00:02]} Be3 {[%emt 0:00:15]} 23. b6 {[%emt 0:03:16]} f5 {[%emt 0:04:02]} 24. Be5 {[%emt 0:01:07]} Rbd8 {[%emt 0:02:23]} 25. Ra3 {[%emt 0:01:36]} Bc4 {[%emt 0:00:35]} 26. Kg2 {[%emt 0:01:46]} Bxf1+ {[%emt 0:00:24]} 27. Kxf1 {[%emt 0:00:09]} Bc5 {[%emt 0:00:24]} 28. Rc3 {[%emt 0:03:26]} axb6 {[%emt 0:00:17]} 29. Bf4 {[%emt 0:06:10]} Rfe8 {[%emt 0:00:10]} 30. Rxc5 {[%emt 0:00:21]} bxc5 {[%emt 0:00:08]} 31. a6 {[%emt 0:00:24]} Ra8 {[%emt 0:00:10]} 32. Bd5+ {[%emt 0:00:58]} Kh8 {[%emt 0:00:07]} 33. Bxa8 {[%emt 0:01:10]} Rxa8 {[%emt 0:00:06]} 34. Be3 {[%emt 0:00:13]} c4 {[%emt 0:00:30]} 35. a7 {[%emt 0:00:06]} c3 {[%emt 0:00:04]} 36. Kxf2 {[%emt 0:00:14]} c2 {[%emt 0:00:04]} 37. Kf3 {[%emt 0:00:16]} Rxa7 {[%emt 0:00:07]} 0-1

[Event "XVII Juros Svente 2020-A"]
[Site "Klaipeda"]
[Date "2020.07.23"]
[Round "4.11"]
[White "Ullrich, Karol"]
[Black "Milovs, Daniels"]
[Result "1/2-1/2"]
[ECO "C05"]
[WhiteElo "1404"]
[BlackElo "1555"]
[Annotator "NA RC"]
[PlyCount "74"]
[EventDate "2020.07.20"]
[EventType "tourn"]
[EventCountry "LTU"]
[SourceTitle "playchess.com"]
[Source "ChessBase"]
[SourceQuality "1"]
[TimeControl "40/5400+30:1800+30"]

1. e4 {[%emt 0:00:00]} e6 {[%emt 0:10:50]} 2. d4 d5 3. Nd2 {[%emt 0:00:00]} Nf6 {[%emt 0:00:03]} 4. e5 {[%emt 0:00:00]} Nfd7 {[%emt 0:00:01]} 5. Bd3 {[%emt 0:00:06]} c5 {[%emt 0:00:01]} 6. c3 {[%emt 0:00:07]} Nc6 {[%emt 0:00:02]} 7. Ne2 {[%emt 0:00:09]} Qb6 {[%emt 0:00:05]} 8. Nf3 {[%emt 0:00:28]} cxd4 {[%emt 0:00:14]} 9. cxd4 {[%emt 0:00:59]} f6 {[%emt 0:00:02]} 10. exf6 {[%emt 0:00:11]} Nxf6 {[%emt 0:00:02]} 11. O-O {[%emt 0:00:28]} Bd6 {[%emt 0:00:48]} 12. Nc3 {[%emt 0:00:30]} O-O {[%emt 0:00:46]} 13. Re1 {[%emt 0:01:37]} Bd7 {[%emt 0:00:54]} 14. Bg5 {[%emt 0:00:43]} Rae8 {[%emt 0:07:32]} 15. Re2 {[%emt 0:09:12]} Ng4 {[%emt 0:08:30]} 16. h3 {[%emt 0:05:17]} Rxf3 {[%emt 0:00:09]} 17. gxf3 {[%emt 0:00:28]} Nh2 {[%emt 0:01:25]} 18. f4 {[%emt 0:00:30]} Nf3+ {[%emt 0:01:52]} 19. Kg2 {[%emt 0:02:46]} Ncxd4 {[%emt 0:09:24]} 20. Re3 {[%emt 0:03:09]} h6 {[%emt 0:05:23]} 21. Rxf3 {[%emt 0:03:21]} Nxf3 {[%emt 0:04:04]} 22. Qxf3 {[%emt 0:02:10]} hxg5 {[%emt 0:00:08]} 23. Re1 {[%emt 0:05:56]} Bxf4 {[%emt 0:12:03]} 24. Qh5 {[%emt 0:01:46]} Qd4 {[%emt 0:07:09]} 25. Bg6 {[%emt 0:07:36]} Rc8 {[%emt 0:04:40]} 26. Bf7+ {[%emt 0:00:30]} Kf8 {[%emt 0:00:02]} 27. Rxe6 {[%emt 0:00:55]} Bxe6 {[%emt 0:01:23]} 28. Bxe6 {[%emt 0:00:11]} Rc7 {[%emt 0:01:55]} 29. Qh8+ {[%emt 0:06:38]} Ke7 {[%emt 0:00:38]} 30. Qg8 {[%emt 0:02:40]} Rxc3 {[%emt 0:02:33]} 31. Qf7+ {[%emt 0:00:36]} Kd6 {[%emt 0:00:03]} 32. Qd7+ {[%emt 0:00:23]} Kc5 {[%emt 0:02:08]} 33. bxc3 {[%emt 0:01:42]} Qe4+ {[%emt 0:01:12]} 34. Kg1 {[%emt 0:00:16]} Qe1+ {[%emt 0:06:45]} 35. Kg2 {[%emt 0:00:12]} Qe4+ {[%emt 0:01:48]} 36. Kg1 {[%emt 0:00:12]} Qb1+ {[%emt 0:01:37]} 37. Kg2 {[%emt 0:00:05]} Qe4+ 1/2-1/2

[Event "XVII Juros Svente 2020-A"]
[Site "Klaipeda"]
[Date "2020.07.23"]
[Round "4.12"]
[White "Barsciauskas, Gintautas"]
[Black "Kozlov, Mikhail D."]
[Result "1-0"]
[ECO "B22"]
[WhiteElo "1575"]
[BlackElo "1070"]
[Annotator "NA RC"]
[PlyCount "85"]
[EventDate "2020.07.20"]
[EventType "tourn"]
[EventCountry "LTU"]
[SourceTitle "playchess.com"]
[Source "ChessBase"]
[SourceQuality "1"]
[TimeControl "40/5400+30:1800+30"]

1. e4 {[%emt 0:00:00]} c5 {[%emt 0:00:00]} 2. c3 {[%emt 0:00:00]} d6 {[%emt 0:00:06]} 3. d4 {[%emt 0:00:36]} cxd4 {[%emt 0:00:08]} 4. cxd4 {[%emt 0:00:08]} Nc6 {[%emt 0:00:33]} 5. Nc3 {[%emt 0:00:35]} Nf6 {[%emt 0:00:47]} 6. Nf3 {[%emt 0:00:45]} Bg4 {[%emt 0:00:22]} 7. Be2 {[%emt 0:00:24]} g6 {[%emt 0:01:19]} 8. h3 {[%emt 0:00:32]} Bxf3 {[%emt 0:00:52]} 9. Bxf3 {[%emt 0:00:17]} Bg7 {[%emt 0:00:14]} 10. O-O {[%emt 0:00:26]} O-O {[%emt 0:00:15]} 11. g3 {[%emt 0:01:05]} Qb6 {[%emt 0:00:51]} 12. Ne2 {[%emt 0:01:48]} Nd7 {[%emt 0:00:48]} 13. d5 {[%emt 0:02:07]} Nce5 {[%emt 0:03:58]} 14. Bg2 {[%emt 0:00:21]} Nc4 {[%emt 0:02:25]} 15. Rb1 {[%emt 0:00:37]} Nc5 {[%emt 0:01:02]} 16. b3 {[%emt 0:03:16]} f5 {[%emt 0:03:45]} 17. Qc2 {[%emt 0:06:23]} Ne5 {[%emt 0:03:00]} 18. Be3 {[%emt 0:01:36]} Rac8 {[%emt 0:01:29]} 19. Qd1 {[%emt 0:02:29]} Qa6 {[%emt 0:00:34]} 20. Bxc5 {[%emt 0:03:35]} Rxc5 {[%emt 0:00:56]} 21. a4 {[%emt 0:03:48]} b5 {[%emt 0:01:09]} 22. axb5 {[%emt 0:01:38]} Rxb5 {[%emt 0:00:20]} 23. Nd4 {[%emt 0:01:34]} Rb4 {[%emt 0:01:38]} 24. exf5 {[%emt 0:03:32]} Rxd4 {[%emt 0:00:26]} 25. Qe1 {[%emt 0:01:47]} Rxf5 {[%emt 0:00:22]} 26. f4 {[%emt 0:00:39]} Qb6 {[%emt 0:01:40]} 27. Kh2 {[%emt 0:01:10]} Nf7 {[%emt 0:03:49]} 28. Qxe7 {[%emt 0:00:51]} Rd2 {[%emt 0:00:58]} 29. Rbc1 {[%emt 0:01:19]} Qa6 {[%emt 0:01:10]} 30. Rfe1 {[%emt 0:05:02]} Ne5 {[%emt 0:02:24]} 31. fxe5 {[%emt 0:03:51]} Rff2 {[%emt 0:01:00]} 32. Qe6+ {[%emt 0:00:43]} Kh8 {[%emt 0:00:20]} 33. Rc8+ {[%emt 0:00:37]} Rf8 {[%emt 0:00:22]} 34. Rxf8+ Bxf8 35. Qf6+ {[%emt 0:03:23]} Kg8 {[%emt 0:00:38]} 36. Rf1 {[%emt 0:02:17]} Qc8 {[%emt 0:00:34]} 37. Qf7+ {[%emt 0:00:34]} Kh8 {[%emt 0:00:21]} 38. Qxf8+ {[%emt 0:00:12]} Qxf8 {[%emt 0:00:13]} 39. Rxf8+ {[%emt 0:00:21]} Kg7 {[%emt 0:00:08]} 40. Ra8 {[%emt 0:00:51]} dxe5 {[%emt 0:00:15]} 41. Rxa7+ {[%emt 0:30:21]} Kh6 {[%emt 0:30:09]} 42. Re7 {[%emt 0:00:37]} Rb2 {[%emt 0:00:28]} 43. d6 {[%emt 0:00:28]} 1-0

[Event "XVII Juros Svente 2020-A"]
[Site "Klaipeda"]
[Date "2020.07.24"]
[Round "5.2"]
[White "Juksta, Karolis"]
[Black "Vardanyan, Aras"]
[Result "1-0"]
[ECO "A57"]
[WhiteElo "2366"]
[BlackElo "2178"]
[Annotator "ChessBase"]
[PlyCount "59"]
[EventDate "2020.07.20"]
[EventType "tourn"]
[EventCountry "LTU"]
[SourceTitle "playchess.com"]
[Source "ChessBase"]
[SourceQuality "1"]
[TimeControl "40/5400+30:1800+30"]

1. d4 {[%emt 0:00:00]} Nf6 {[%emt 0:00:00]} 2. c4 {[%emt 0:00:00]} c5 {[%emt 0:00:00]} 3. d5 {[%emt 0:00:00]} b5 {[%emt 0:00:00]} 4. cxb5 {[%emt 0:00:18]} a6 {[%emt 0:00:00]} 5. e3 {[%emt 0:00:28]} axb5 {[%emt 0:00:00]} 6. Bxb5 {[%emt 0:00:10]} Qa5+ {[%emt 0:00:00]} 7. Nc3 {[%emt 0:00:06]} Bb7 {[%emt 0:00:02]} 8. Bd2 {[%emt 0:01:13]} Qb6 {[%emt 0:00:05]} 9. Nf3 {[%emt 0:00:15]} Nxd5 {[%emt 0:00:09]} 10. a4 {[%emt 0:00:12]} e6 {[%emt 0:00:37]} 11. O-O {[%emt 0:02:07]} Be7 {[%emt 0:00:30]} 12. e4 {[%emt 0:01:43]} Nxc3 {[%emt 0:03:42]} 13. Bxc3 {[%emt 0:00:11]} O-O {[%emt 0:01:31]} 14. Ne5 {[%emt 0:00:34]} d5 {[%emt 0:02:01]} 15. exd5 {[%emt 0:00:54]} exd5 {[%emt 0:00:07]} 16. Re1 {[%emt 0:05:45]} Bf6 {[%emt 0:04:28]} 17. Rc1 {[%emt 0:16:29]} d4 {[%emt 0:09:25]} 18. Bd2 {[%emt 0:01:51]} Ba6 {[%emt 0:09:06]} 19. Qf3 {[%emt 0:23:33]} Ra7 {[%emt 0:22:06]} 20. Nc4 {[%emt 0:01:58]} Qb7 {[%emt 0:01:59]} 21. Qxb7 {[%emt 0:02:52]} Rxb7 {[%emt 0:02:14]} 22. Na5 {[%emt 0:01:32]} Rc7 {[%emt 0:10:07]} 23. Bf4 {[%emt 0:05:59]} Re7 {[%emt 0:01:16]} 24. Bxb8 {[%emt 0:10:17]} Bxb5 {[%emt 0:00:30]} 25. axb5 {[%emt 0:00:35]} Rxb8 {[%emt 0:03:21]} 26. Nc6 {[%emt 0:00:32]} Rbb7 {[%emt 0:00:09]} 27. Nxe7+ {[%emt 0:00:23]} Bxe7 {[%emt 0:00:06]} 28. b4 {[%emt 0:04:48]} d3 {[%emt 0:00:55]} 29. Rxc5 {[%emt 0:08:19]} g6 {[%emt 0:07:39]} 30. Rd5 {[%emt 0:02:59]} 1-0

[Event "XVII Juros Svente 2020-A"]
[Site "Klaipeda"]
[Date "2020.07.24"]
[Round "5.3"]
[White "Stremavicius, Pijus"]
[Black "Jablokov, Dmitrij"]
[Result "1-0"]
[ECO "A05"]
[WhiteElo "2163"]
[BlackElo "1962"]
[Annotator "ChessBase"]
[PlyCount "130"]
[EventDate "2020.07.20"]
[EventType "tourn"]
[EventCountry "LTU"]
[SourceTitle "playchess.com"]
[Source "ChessBase"]
[SourceQuality "1"]
[TimeControl "40/5400+30:1800+30"]

1. Nf3 {[%emt 0:00:00]} Nf6 {[%emt 0:03:13]} 2. c4 {[%emt 0:00:00]} g6 {[%emt 0:00:11]} 3. Nc3 {[%emt 0:00:00]} d5 {[%emt 0:00:04]} 4. cxd5 {[%emt 0:00:00]} Nxd5 {[%emt 0:00:01]} 5. Qb3 {[%emt 0:00:04]} Nb6 {[%emt 0:08:12]} 6. d4 {[%emt 0:00:22]} Bg7 {[%emt 0:00:16]} 7. Bf4 {[%emt 0:00:10]} O-O {[%emt 0:01:32]} 8. Rd1 {[%emt 0:00:12]} c6 {[%emt 0:01:19]} 9. e4 {[%emt 0:00:43]} Bg4 {[%emt 0:02:30]} 10. Be2 {[%emt 0:01:31]} N8d7 {[%emt 0:03:22]} 11. O-O {[%emt 0:00:29]} Nf6 {[%emt 0:06:27]} 12. h3 {[%emt 0:00:44]} Be6 {[%emt 0:00:53]} 13. Qc2 {[%emt 0:02:30]} Qc8 {[%emt 0:01:30]} 14. b3 {[%emt 0:02:07]} h6 {[%emt 0:16:27]} 15. Rfe1 {[%emt 0:02:26]} g5 {[%emt 0:01:31]} 16. Bh2 {[%emt 0:00:26]} Rd8 {[%emt 0:03:05]} 17. Ne5 {[%emt 0:03:18]} Nfd7 {[%emt 0:01:49]} 18. Nc4 {[%emt 0:05:27]} Nf8 {[%emt 0:00:33]} 19. Nxb6 {[%emt 0:01:42]} axb6 {[%emt 0:00:02]} 20. Na4 {[%emt 0:00:09]} Bxd4 {[%emt 0:01:47]} 21. Rxd4 {[%emt 0:00:19]} Rxd4 {[%emt 0:00:01]} 22. Nxb6 {[%emt 0:00:07]} Qd8 {[%emt 0:00:55]} 23. Nxa8 {[%emt 0:00:20]} Qxa8 {[%emt 0:00:01]} 24. Be5 {[%emt 0:01:17]} Rd8 {[%emt 0:01:35]} 25. Ba1 {[%emt 0:00:26]} Ng6 {[%emt 0:01:12]} 26. Bf1 {[%emt 0:00:21]} Qa5 {[%emt 0:02:56]} 27. Qc3 {[%emt 0:00:43]} Qxc3 {[%emt 0:00:25]} 28. Bxc3 {[%emt 0:00:02]} Nf4 {[%emt 0:00:18]} 29. Kh2 {[%emt 0:00:20]} Rd7 {[%emt 0:04:38]} 30. g3 {[%emt 0:00:56]} Nd3 {[%emt 0:00:01]} 31. Re2 {[%emt 0:00:44]} f6 {[%emt 0:01:49]} 32. Rd2 {[%emt 0:00:28]} Nc5 {[%emt 0:01:30]} 33. Rxd7 {[%emt 0:00:07]} Bxd7 {[%emt 0:00:43]} 34. f3 {[%emt 0:00:06]} Kf7 {[%emt 0:01:23]} 35. g4 {[%emt 0:00:17]} b5 {[%emt 0:01:53]} 36. h4 {[%emt 0:00:14]} Be6 {[%emt 0:02:04]} 37. Kg3 {[%emt 0:00:31]} Bc8 {[%emt 0:00:32]} 38. h5 {[%emt 0:01:15]} Be6 {[%emt 0:01:50]} 39. Be2 {[%emt 0:00:10]} Bd7 {[%emt 0:00:30]} 40. Bb4 {[%emt 0:00:25]} Na6 {[%emt 0:00:30]} 41. Bd2 {[%emt 0:30:08]} Be6 {[%emt 0:30:20]} 42. Kf2 {[%emt 0:00:10]} Ke8 {[%emt 0:00:55]} 43. Ke3 {[%emt 0:00:55]} Kd7 {[%emt 0:00:15]} 44. Bd3 {[%emt 0:00:42]} Nc5 {[%emt 0:00:35]} 45. Bb1 {[%emt 0:00:09]} Na6 {[%emt 0:00:16]} 46. Bc3 {[%emt 0:00:08]} Kd6 {[%emt 0:01:48]} 47. Bd3 {[%emt 0:00:53]} Bd7 {[%emt 0:01:41]} 48. e5+ {[%emt 0:02:05]} fxe5 {[%emt 0:00:19]} 49. b4 {[%emt 0:00:07]} Be6 {[%emt 0:01:06]} 50. a4 {[%emt 0:00:36]} Nc7 {[%emt 0:00:06]} 51. Ke4 {[%emt 0:08:05]} Bd5+ {[%emt 0:01:02]} 52. Kf5 {[%emt 0:00:05]} e6+ {[%emt 0:00:20]} 53. Kf6 {[%emt 0:01:44]} Bxf3 {[%emt 0:00:51]} 54. Bxe5+ {[%emt 0:00:08]} Kd7 {[%emt 0:00:01]} 55. axb5 {[%emt 0:01:17]} Bxg4 {[%emt 0:01:52]} 56. Kg6 {[%emt 0:02:12]} Nd5 {[%emt 0:08:46]} 57. bxc6+ {[%emt 0:01:12]} Kxc6 {[%emt 0:00:16]} 58. b5+ {[%emt 0:00:05]} Kc5 {[%emt 0:01:09]} 59. Kxh6 {[%emt 0:00:21]} Nf4 {[%emt 0:01:26]} 60. Bxf4 {[%emt 0:00:38]} gxf4 {[%emt 0:00:01]} 61. Kg5 {[%emt 0:00:01]} Bxh5 {[%emt 0:00:55]} 62. Kxh5 {[%emt 0:00:06]} e5 {[%emt 0:00:06]} 63. Kg4 {[%emt 0:00:14]} e4 {[%emt 0:00:29]} 64. Bf1 {[%emt 0:00:07]} f3 {[%emt 0:00:06]} 65. Kf4 {[%emt 0:00:04]} Kd5 1-0

[Event "XVII Juros Svente 2020-A"]
[Site "Klaipeda"]
[Date "2020.07.24"]
[Round "5.5"]
[White "Pidluznij, Gleb"]
[Black "Kaunas, Kestutis"]
[Result "1-0"]
[ECO "B03"]
[WhiteElo "2042"]
[BlackElo "2178"]
[Annotator "ChessBase"]
[PlyCount "113"]
[EventDate "2020.07.20"]
[EventType "tourn"]
[EventCountry "LTU"]
[SourceTitle "playchess.com"]
[Source "ChessBase"]
[SourceQuality "1"]
[TimeControl "40/5400+30:1800+30"]

1. e4 {[%emt 0:00:00]} Nf6 {[%emt 0:02:01]} 2. e5 {[%emt 0:00:00]} Nd5 {[%emt 0:00:26]} 3. d4 {[%emt 0:00:00]} d6 {[%emt 0:00:02]} 4. c4 {[%emt 0:00:07]} Nb6 {[%emt 0:00:02]} 5. exd6 {[%emt 0:00:10]} exd6 {[%emt 0:00:05]} 6. Nc3 {[%emt 0:00:11]} Be7 {[%emt 0:04:42]} 7. Bd3 {[%emt 0:00:21]} Nc6 {[%emt 0:00:51]} 8. Nge2 {[%emt 0:00:34]} Bg4 {[%emt 0:01:13]} 9. Be3 {[%emt 0:08:10]} Nb4 {[%emt 0:25:09]} 10. Bb1 {[%emt 0:03:03]} c5 {[%emt 0:02:14]} 11. b3 {[%emt 0:20:01]} Nc6 {[%emt 0:06:30]} 12. f3 {[%emt 0:01:05]} Bh5 {[%emt 0:00:30]} 13. d5 {[%emt 0:06:37]} Ne5 {[%emt 0:03:10]} 14. O-O {[%emt 0:04:16]} Bg6 {[%emt 0:00:08]} 15. Ng3 {[%emt 0:03:05]} Bxb1 {[%emt 0:06:30]} 16. Rxb1 {[%emt 0:00:33]} O-O {[%emt 0:02:34]} 17. Nf5 {[%emt 0:05:51]} Qd7 {[%emt 0:02:07]} 18. Nxe7+ {[%emt 0:00:56]} Qxe7 {[%emt 0:00:08]} 19. Re1 {[%emt 0:00:09]} Qf6 {[%emt 0:06:07]} 20. Qd2 {[%emt 0:06:26]} Qg6 {[%emt 0:08:30]} 21. Kh1 {[%emt 0:07:13]} Rae8 {[%emt 0:02:29]} 22. Bf4 {[%emt 0:09:29]} Nbd7 {[%emt 0:04:16]} 23. Re3 {[%emt 0:02:21]} a6 {[%emt 0:09:47]} 24. Rbe1 {[%emt 0:00:41]} f5 {[%emt 0:01:18]} 25. Bxe5 {[%emt 0:02:31]} dxe5 {[%emt 0:04:49]} 26. Na4 {[%emt 0:06:21]} h6 {[%emt 0:03:02]} 27. Nb2 {[%emt 0:02:13]} e4 {[%emt 0:00:54]} 28. Nd1 {[%emt 0:01:50]} Nf6 {[%emt 0:00:52]} 29. Nf2 {[%emt 0:04:15]} f4 {[%emt 0:02:30]} 30. Rxe4 {[%emt 0:00:04]} Nxe4 {[%emt 0:00:09]} 31. Nxe4 {[%emt 0:00:04]} b6 {[%emt 0:00:15]} 32. d6 {[%emt 0:00:18]} Qe6 {[%emt 0:01:00]} 33. Rd1 {[%emt 0:00:18]} Rd8 {[%emt 0:01:26]} 34. a4 {[%emt 0:00:31]} a5 {[%emt 0:00:12]} 35. Qc3 {[%emt 0:00:31]} Rf5 {[%emt 0:00:47]} 36. Rd3 {[%emt 0:00:53]} Qe5 {[%emt 0:00:35]} 37. Qc1 {[%emt 0:03:43]} Qe6 {[%emt 0:00:14]} 38. Qd2 {[%emt 0:00:07]} Kf7 {[%emt 0:00:52]} 39. d7 {[%emt 0:00:15]} Ke7 {[%emt 0:00:30]} 40. Rd6 {[%emt 0:00:56]} Qe5 {[%emt 0:00:19]} 41. h3 {[%emt 0:30:20]} Rf7 {[%emt 0:11:38]} 42. Rxb6 {[%emt 0:00:00]} Rxd7 {[%emt 0:02:16]} 43. Qxa5 {[%emt 0:00:00]} Rf5 {[%emt 0:05:19]} 44. Rc6 {[%emt 0:00:00]} Qd4 {[%emt 0:07:58]} 45. Qb6 {[%emt 0:00:00]} Re5 {[%emt 0:02:49]} 46. Rc7 {[%emt 0:00:00]} Rxc7 {[%emt 0:03:05]} 47. Qxc7+ {[%emt 0:00:00]} Kf8 {[%emt 0:00:16]} 48. Qc8+ {[%emt 0:00:00]} Kf7 {[%emt 0:00:15]} 49. Qg4 {[%emt 0:00:00]} Rxe4 {[%emt 0:00:28]} 50. Qf5+ {[%emt 0:00:00]} Kg8 {[%emt 0:00:12]} 51. Qxe4 {[%emt 0:00:00]} Qd1+ {[%emt 0:00:16]} 52. Kh2 {[%emt 0:00:00]} Qxb3 {[%emt 0:00:13]} 53. a5 {[%emt 0:00:01]} Qa3 {[%emt 0:00:15]} 54. Qa8+ {[%emt 0:00:49]} Kf7 {[%emt 0:00:31]} 55. Qb7+ {[%emt 0:00:11]} Kf6 {[%emt 0:00:25]} 56. a6 {[%emt 0:00:22]} Qa2 57. a7 1-0

[Event "XVII Juros Svente 2020-A"]
[Site "Klaipeda"]
[Date "2020.07.24"]
[Round "5.6"]
[White "Greicius, Pijus"]
[Black "Tolmacevs, Artjoms"]
[Result "1-0"]
[ECO "A43"]
[WhiteElo "1893"]
[BlackElo "1610"]
[Annotator "NA RC"]
[PlyCount "51"]
[EventDate "2020.07.20"]
[EventType "tourn"]
[EventCountry "LTU"]
[SourceTitle "playchess.com"]
[Source "ChessBase"]
[SourceQuality "1"]
[TimeControl "40/5400+30:1800+30"]

{[%evp 8,48,55,45,52,49,74,63,64,54,60,29,62,52,51,41,32767,32767,32767,32767,95,100,102,125,133,76,91,109,88,82,93,93,128,122,116,110,108,100,383,378,545,574,582]} 1. d4 {[%emt 0:00:00]} Nf6 {[%emt 0:00:00]} 2. Nf3 {[%emt 0:00:00]} c5 {[%emt 0:00:29]} 3. d5 {[%emt 0:00:15]} g6 {[%emt 0:02:49]} 4. Nc3 {[%emt 0:00:06]} d6 {[%emt 0:02:16]} 5. e4 {[%emt 0:00:07]} Bg7 {[%emt 0:00:58]} 6. Bb5+ {[%emt 0:00:07]} Nbd7 {[%emt 0:02:09]} 7. a4 {[%emt 0:00:11] A43: Schmid Benoni.} a6 {[%emt 0:01:20]} 8. Bd3 {[%emt 0:00:24]} O-O {[%emt 0:00:50]} 9. h3 {[%emt 0:01:40]} Re8 {[%emt 0:04:50]} 10. Bf4 {[%emt 0:00:14]} b6 {[%emt 0:03:06]} 11. O-O {[%emt 0:00:11]} Bb7 {[%emt 0:00:13]} 12. Re1 {[%emt 0:01:28]} Nf8 {[%emt 0:01:38]} 13. Bc4 {[%emt 0:00:13]} e5 {[%emt 0:07:37]} 14. dxe6 {[%emt 0:01:29]} Nxe6 {[%emt 0:00:13] [#]} 15. Qxd6 $146 {[%emt 0:14:45]} ({Predecessor:} 15. Bxd6 Nd4 16. Nxd4 Qxd6 17. Nf3 Qxd1 18. Raxd1 Nxe4 19. Rd7 Bxc3 20. bxc3 Reb8 21. Bxf7+ {1-0 (31) Beaumont,C (2306)-Helbig,P (2172) Bristol 2009}) 15... Nd4 {[%emt 0:00:54]} 16. Nxd4 {[%emt 0:03:16]} ({White should play} 16. Ng5 Qxd6 17. Bxf7+ (17. Bxd6 Nxc2 18. e5 Nh5 $16) 17... Kh8 18. Bxd6) 16... Qxd6 {[%emt 0:00:39]} 17. Bxd6 {[%emt 0:00:06]} cxd4 {[%emt 0:00:05]} 18. Nd5 {[%emt 0:00:07]} Nxe4 {[%emt 0:04:02]} 19. Bb4 {[%emt 0:03:55]} b5 {[%emt 0:04:26]} (19... a5 $14) 20. axb5 {[%emt 0:00:14]} axb5 {[%emt 0:00:16]} 21. Rxa8 {[%emt 0:00:07]} Bxa8 {[%emt 0:00:39]} 22. Bb3 {[%emt 0:03:36]} Bf8 $2 {[%emt 0:08:48]} (22... Bb7 $16) 23. Bxf8 {[%emt 0:00:22]} Bxd5 {[%emt 0:00:33]} (23... Kxf8 $142 24. Nc7 {[%mdl 64] Double Attack} Rc8) 24. Bxd5 {[%emt 0:00:13]} Kxf8 $18 {[%emt 0:00:50]} 25. Rxe4 {[%emt 0:00:09]} Rc8 {[%emt 0:00:08]} 26. Bb3 {[%emt 0:00:05]} 1-0

[Event "XVII Juros Svente 2020-A"]
[Site "Klaipeda"]
[Date "2020.07.24"]
[Round "5.8"]
[White "Zirnovas, Martynas"]
[Black "Savicevs, Arsenijs"]
[Result "0-1"]
[ECO "B90"]
[WhiteElo "1801"]
[BlackElo "1578"]
[Annotator "NA"]
[PlyCount "72"]
[EventDate "2020.07.20"]
[EventType "tourn"]
[EventCountry "LTU"]
[SourceTitle "playchess.com"]
[Source "ChessBase"]
[SourceQuality "1"]
[TimeControl "40/5400+30:1800+30"]

{[%evp 8,66,37,22,26,8,12,-1,-11,-10,-7,-29,0,-7,-21,-31,-22,-44,-28,-52,-10,32767,32767,3,21,9,47,30,56,27,81,60,123,91,114,135,112,118,189,183,187,163,183,193,178,71,95,76,77,86,94,42,68,76,111,136,120,32767,-12842,32767,-29969]} 1. e4 {[%emt 0:07:24]} c5 {[%emt 0:00:00]} 2. Nf3 {[%emt 0:00:22]} d6 {[%emt 0:00:00]} 3. d4 {[%emt 0:00:50]} cxd4 {[%emt 0:00:00]} 4. Nxd4 {[%emt 0:00:08]} Nf6 {[%emt 0:00:00]} 5. Nc3 {[%emt 0:00:28]} a6 {[%emt 0:00:01]} 6. Bc4 {[%emt 0:01:17]} e6 {[%emt 0:00:05]} 7. Bg5 {[%emt 0:01:50]} Be7 {[%emt 0:00:06]} 8. O-O {[%emt 0:01:47]} O-O {[%emt 0:00:27]} 9. Qf3 {[%emt 0:04:33] B95: Sicilian Najdorf: 6 Bg5 e6, unusual White 7th moves.} Nbd7 {[%emt 0:00:57] [#]} 10. Qe3 $146 {[%emt 0:13:20]} ({Predecessor:} 10. Qe2 h6 11. Be3 Ne5 12. Bb3 Qc7 13. f4 Neg4 14. Kh1 Nxe3 15. Qxe3 Qc5 16. Rad1 {1-0 (68) Huang,R (2281)-Peng,S (2388) Daqing 2018}) 10... Ne5 {[%emt 0:06:33]} 11. Bb3 {[%emt 0:04:34]} b5 {[%emt 0:03:33]} 12. Kh1 {[%emt 0:04:31]} b4 {[%emt 0:02:30]} 13. Nce2 {[%emt 0:06:36]} Bb7 {[%emt 0:03:28]} 14. f3 {[%emt 0:11:07]} Ng6 {[%emt 0:03:57]} 15. Bxe6 {[%emt 0:09:55]} fxe6 {[%emt 0:00:29]} 16. Nxe6 {[%emt 0:00:11] Double Attack} Qd7 {[%emt 0:00:22]} 17. Nxf8 {[%emt 0:00:15]} Rxf8 {[%emt 0:00:04]} 18. Rad1 {[%emt 0:03:47]} Qc7 {[%emt 0:01:48]} 19. Nd4 {[%emt 0:02:28]} Rb8 {[%emt 0:01:49]} 20. Qb3+ {[%emt 0:03:53]} Kh8 {[%emt 0:00:43]} 21. Nf5 {[%emt 0:00:36]} d5 {[%emt 0:01:56]} 22. Nxe7 {[%emt 0:02:23]} ({Reject} 22. exd5 $6 Bxd5 23. Qa4 Bc6 $11) 22... Qxe7 {[%emt 0:00:29]} 23. exd5 {[%emt 0:01:32]} Qd6 {[%emt 0:01:52]} 24. Bxf6 {[%emt 0:01:58]} gxf6 {[%emt 0:00:14]} 25. Rfe1 {[%emt 0:01:55]} Nf4 {[%emt 0:01:04]} 26. Qa4 {[%emt 0:04:05]} (26. Re4 $18 {is more deadly.} Nxd5 27. Red4) 26... Bxd5 {[%emt 0:03:36]} 27. c4 {[%emt 0:04:21]} bxc3 {[%emt 0:00:51]} 28. bxc3 {[%emt 0:00:20]} Qc7 {[%emt 0:06:44]} 29. Qxa6 {[%emt 0:04:28]} Qg7 {[%emt 0:00:06]} 30. Rd2 {[%emt 0:01:21]} Nxg2 {[%emt 0:01:11] [#]} 31. Qd6 $1 {[%emt 0:02:17]} Rg8 {[%emt 0:00:28]} 32. Rg1 {[%emt 0:00:50]} Bxf3 {[%emt 0:00:06]} 33. Qg3 {[%emt 0:00:33]} Nf4+ {[%emt 0:01:04]} 34. Rgg2 {[%emt 0:00:34]} Bxg2+ {[%emt 0:00:13]} 35. Rxg2 {[%emt 0:00:08]} Nxg2 {[%emt 0:00:04]} 36. Kxg2 {[%emt 0:00:50]} Qb7+ 0-1